fUST/lending_fUST_20250517
["ID","MTS","AMOUNT","RATE_DAILY","PERIOD"]
[361340446,1747491046123,-194.0,0.000164,4]
[361340448,1747491046132,-187.15000001,0.000164,3]
[361340450,1747491046142,-637.5364221,0.00016416,2]
[361340452,1747491046152,-500.0,0.00016416,2]
[361340454,1747491046162,-500.0,0.00016416,2]
[361340456,1747491046171,-530.35559573,0.00016416,2]
[361340458,1747491046180,-500.0,0.00016416,2]
[361340460,1747491046190,-500.0,0.00016416,2]
[361340462,1747491046199,-500.0,0.00016416,2]
[361340464,1747491046209,-490.82941418,0.00016416,2]
[361340466,1747491046220,-500.0,0.00016416,2]
[361340468,1747491046230,-2331.34048855,0.00016417,2]
[361340470,1747491046239,-199.7262,0.00016428,2]
[361340472,1747491046249,-486.19956765,0.00016438,2]
[361340474,1747491046258,-846.92,0.00016438,2]
[361340476,1747491046268,-541.38,0.00016438,2]
[361340478,1747491046278,-233.263755,0.00016438,2]
[361340480,1747491046287,-233.263755,0.00016438,2]
[361340482,1747491046296,-233.263755,0.00016438,2]
[361340484,1747491046305,-233.263755,0.00016438,2]
[361340486,1747491046314,-233.263755,0.00016438,2]
[361340488,1747491046324,-233.263755,0.00016438,2]
[361340490,1747491046334,-233.263755,0.00016438,2]
[361340492,1747491046344,-233.263755,0.00016438,2]
[361340494,1747491046353,-233.263755,0.00016438,2]
[361340496,1747491046363,-233.263755,0.00016438,2]
[361340498,1747491046372,-233.263755,0.00016438,2]
[361340500,1747491046383,-233.263755,0.00016438,2]
[361340502,1747491046393,-233.263755,0.00016438,2]
[361340504,1747491046402,-233.263755,0.00016438,2]
[361340506,1747491046412,-233.263755,0.00016438,2]
[361340508,1747491046421,-233.263755,0.00016438,2]
[361340510,1747491046432,-233.263755,0.00016438,2]
[361340512,1747491046441,-233.263755,0.00016438,2]
[361340514,1747491046451,-233.263755,0.00016438,2]
[361340516,1747491046461,-233.263756,0.00016438,2]
[361340518,1747491046470,-12627.42419379,0.00016446,2]
[361340520,1747491046480,-587.0,0.0001645,2]
[361340522,1747491046489,-1000.0,0.00016574,2]
[361340524,1747491046499,-846.92,0.00016575,2]
[361340526,1747491046509,-541.38,0.00016575,2]
[361340528,1747491046518,-160.0,0.00016609,2]
[361340530,1747491046528,-1000.0,0.00016615,2]
[361340532,1747491046537,-1000.0,0.00016663,2]
[361340534,1747491046547,-151.0,0.00016712,2]
[361340536,1747491046556,-437.130196,0.00016712,2]
[361340538,1747491046566,-151.0,0.00016712,2]
[361340540,1747491046575,-151.0,0.00016712,2]
[361340542,1747491046587,-437.130196,0.00016712,2]
[361340545,1747491046597,-290.943191,0.00016712,2]
[361340546,1747491046608,-154.343825,0.00016712,2]
[361340548,1747491046618,-846.92,0.00016712,2]
[361340550,1747491046628,-541.38,0.00016712,2]
[361340553,1747491046638,-153.0,0.00016712,2]
[361340554,1747491046648,-2331.34048855,0.00016797,2]
[361340555,1747491046658,-194.0,0.000168,2]
[361340556,1747491046667,-194.0,0.000168,2]
[361340557,1747491046677,-194.0,0.000168,3]
[361340558,1747491046688,-194.0,0.000168,3]
[361340559,1747491046698,-151.0,0.00016849,2]
[361340560,1747491046708,-151.0,0.00016849,2]
[361340561,1747491046717,-151.0,0.00016849,2]
[361340562,1747491046727,-151.0,0.00016849,2]
[361340563,1747491046736,-151.0,0.00016849,2]
[361340565,1747491046745,-151.0,0.00016849,2]
[361340567,1747491046754,-151.0,0.00016849,2]
[361340569,1747491046764,-151.0,0.00016849,2]
[361340571,1747491046774,-847.09,0.00016849,2]
[361340573,1747491046783,-541.43,0.00016849,2]
[361340575,1747491046793,-157.4462085,0.00016887,2]
[361340577,1747491046806,-300.27900317,0.000169,2]
[361340579,1747491046824,-47923.45063152,0.00016972,2]
[361340581,1747491046842,-5533.93817669,0.00016972,7]
[361340583,1747491046855,-171.438411,0.00016972,2]
[361340585,1747491046866,-151.0,0.00016972,2]
[361340587,1747491046876,-151.0,0.00016972,2]
[361340589,1747491046886,-151.0,0.00016972,2]
[361340591,1747491046895,-151.0,0.00016972,2]
[361340593,1747491046904,-151.0,0.00016972,2]
[361340595,1747491046914,-151.0,0.00016972,2]
[361340597,1747491046923,-151.0,0.00016972,2]
[361340600,1747491046934,-151.0,0.00016972,2]
[361340602,1747491046944,-151.0,0.00016972,2]
[361340604,1747491046954,-151.0,0.00016972,2]
[361340606,1747491046964,-151.0,0.00016972,2]
[361340608,1747491046973,-151.0,0.00016972,2]
[361340610,1747491046982,-3259.637151,0.00016972,2]
[361340612,1747491046991,-3259.637151,0.00016972,2]
[361340632,1747491047175,-1215.710198,0.00016972,2]
[361340634,1747491047186,-1215.710198,0.00016972,2]
[361340636,1747491047196,-500.0,0.00016972,2]
[361340638,1747491047206,-500.0,0.00016972,2]
[361340641,1747491047215,-1000.0,0.00017,2]
[361340642,1747491047224,-91435.88966547,0.00017,2]
[361340644,1747491047234,-1846.54,0.00017,2]
[361340647,1747491047243,-4044.65620989,0.00017,2]
[361340649,1747491047252,-151.0,0.00017,2]
[361340651,1747491047262,-151.0,0.00017,2]
[361340652,1747491047271,-151.0,0.00017,2]
[361340655,1747491047282,-151.0,0.00017,2]
[361340656,1747491047291,-151.0,0.00017,2]
[361340658,1747491047301,-151.0,0.00017,2]
[361340660,1747491047310,-151.0,0.00017,2]
[361340662,1747491047319,-151.0,0.00017,2]
[361340664,1747491047328,-151.0,0.00017,2]
[361340667,1747491047337,-437.130196,0.00017,2]
[361340668,1747491047346,-151.0,0.00017,2]
[361340671,1747491047356,-151.0,0.00017,2]
[361340672,1747491047365,-437.130196,0.00017,2]
[361340675,1747491047374,-154.343825,0.00017,2]
[361340677,1747491047383,-151.966205,0.00017,2]
[361340678,1747491047392,-151.0,0.00017,2]
[361340680,1747491047402,-151.0,0.00017,2]
[361340682,1747491047411,-151.0,0.00017,2]
[361340685,1747491047421,-151.0,0.00017,2]
[361340687,1747491047430,-151.0,0.00017,2]
[361340689,1747491047439,-151.0,0.00017,2]
[361340691,1747491047448,-151.0,0.00017,2]
[361340693,1747491047458,-151.0,0.00017,2]
[361340695,1747491047467,-151.0,0.00017,2]
[361340697,1747491047477,-151.0,0.00017,2]
[361340699,1747491047486,-151.0,0.00017,2]
[361340701,1747491047496,-3259.637151,0.00017,2]
[361340703,1747491047506,-3259.637151,0.00017,2]
[361340705,1747491047516,-1215.710198,0.00017,2]
[361340707,1747491047526,-1215.710198,0.00017,2]
[361340709,1747491047536,-151.0,0.00017,2]
[361340711,1747491047545,-151.0,0.00017,2]
[361340713,1747491047555,-288.405798,0.00017,2]
[361340715,1747491047564,-288.405798,0.00017,2]
[361340717,1747491047573,-151.0,0.00017,2]
[361340719,1747491047583,-151.0,0.00017,2]
[361340721,1747491047592,-151.0,0.00017,2]
[361340723,1747491047602,-151.0,0.00017,2]
[361340725,1747491047613,-165.969453,0.00017,2]
[361340727,1747491047623,-165.969453,0.00017,2]
[361340729,1747491047632,-954.7667,0.00017,2]
[361340731,1747491047642,-177.664851,0.00017,2]
[361340733,1747491047652,-151.0,0.00017,2]
[361340735,1747491047661,-177.664851,0.00017,2]
[361340737,1747491047672,-151.0,0.00017,2]
[361340739,1747491047682,-151.0,0.00017,2]
[361340741,1747491047691,-151.0,0.00017,2]
[361340743,1747491047700,-151.0,0.00017,2]
[361340745,1747491047710,-151.0,0.00017,2]
[361340747,1747491047720,-701.865962,0.00017,2]
[361340749,1747491047730,-701.865962,0.00017,2]
[361340752,1747491047740,-151.0,0.00017,2]
[361340754,1747491047750,-178.27157023,0.00017029,2]
[361340756,1747491047759,-500.0,0.00017163,2]
[361340758,1747491047770,-2331.34048855,0.00017176,2]
[361340760,1747491047780,-1500.0,0.00017211,2]
[361340762,1747491047789,-151.0,0.000173,2]
[361340764,1747491047799,-586.9567621,0.00017358,2]
[361340766,1747491047808,-1000.0,0.000175,3]
[361340768,1747491047818,-2331.34048855,0.00017555,2]
[361340770,1747491047828,-2064.34100583,0.000176,2]
[361340772,1747491047837,-151.0,0.000176,2]
[361340774,1747491047847,-200.0,0.00017748,4]
[361340776,1747491047856,-2000.0,0.00017759,2]
[361340778,1747491047865,-178.27157023,0.000179,2]
[361340780,1747491047875,-2331.34048855,0.00017934,2]
[361340782,1747491047884,-151.83320554,0.00018,2]
[361340784,1747491047894,-2064.0,0.00018,3]
[361340786,1747491047903,-2004.0,0.00018,2]
[361340788,1747491047912,-38098.37220328,0.00018,2]
[361340997,1747491072416,2367.0,0.000273,120]
[361340999,1747491649128,1000.0,0.00027,120]
[361341006,1747491998728,5000.0,0.00013,2]
[361341056,1747492231794,-4680.5352253,0.000134,2]
[361341063,1747492231876,-2715.4647747,0.000134,2]
[361341064,1747492231886,-5000.0,0.00013559,2]
[361341065,1747492231896,-586.95676214,0.00013598,2]
[361341066,1747492231906,-245.88758902,0.0001369,2]
[361341067,1747492231915,-151.45521363,0.0001369,2]
[361341068,1747492231925,-207.4,0.0001369,2]
[361341069,1747492231934,-300.0,0.00013696,2]
[361341070,1747492231944,-300.0,0.00013696,2]
[361341071,1747492231953,-1200.0,0.00013696,2]
[361341072,1747492231962,-500.0,0.00013697,2]
[361341073,1747492231972,-215.08874136,0.00013697,2]
[361341074,1747492231981,-164.93091423,0.00013697,2]
[361341075,1747492231991,-500.0,0.00013697,2]
[361341076,1747492232000,-500.0,0.00013697,2]
[361341077,1747492232009,-500.0,0.00013697,2]
[361341078,1747492232023,-550.0,0.00013697,2]
[361341079,1747492232032,-500.0,0.00013697,2]
[361341080,1747492232042,-500.0,0.00013697,2]
[361341081,1747492232051,-500.0,0.00013697,2]
[361341082,1747492232061,-500.0,0.00013697,2]
[361341083,1747492232070,-500.0,0.00013697,2]
[361341084,1747492232080,-500.0,0.00013697,2]
[361341085,1747492232090,-500.0,0.00013697,2]
[361341086,1747492232100,-262.21470523,0.00013697,2]
[361341087,1747492232110,-500.0,0.00013697,2]
[361341088,1747492232119,-449.03887333,0.00013697,2]
[361341089,1747492232128,-450.0,0.00013698,2]
[361341090,1747492232138,-400.0,0.00013698,2]
[361341091,1747492232147,-400.0,0.00013698,2]
[361341092,1747492232156,-400.0,0.00013698,2]
[361341093,1747492232165,-400.0,0.00013698,2]
[361341094,1747492232174,-400.0,0.00013698,2]
[361341095,1747492232183,-400.0,0.00013698,2]
[361341096,1747492232193,-225.59043523,0.00013698,2]
[361341097,1747492232202,-400.0,0.00013698,2]
[361341098,1747492232211,-396.35656406,0.00013698,2]
[361341099,1747492232220,-400.0,0.00013698,2]
[361341100,1747492232229,-400.0,0.00013698,2]
[361341101,1747492232239,-517.30722969,0.00013698,2]
[361341102,1747492232247,-400.0,0.00013698,2]
[361341103,1747492232256,-400.0,0.00013698,2]
[361341104,1747492232265,-400.42726605,0.00013698,2]
[361341105,1747492232274,-221.34935691,0.00013698,2]
[361341148,1747492237694,-300.0,0.00013558,2]
[361341150,1747492237704,-238.99064309,0.00013698,2]
[361341152,1747492237713,-450.0,0.00013698,2]
[361341154,1747492237723,-400.0,0.00013698,2]
[361341156,1747492237733,-450.0,0.00013698,2]
[361341158,1747492237742,-400.0,0.00013698,2]
[361341160,1747492237751,-561.75,0.00013698,2]
[361341162,1747492237760,-555.66,0.00013698,2]
[361341163,1747492237770,-400.0,0.00013698,2]
[361341165,1747492237779,-501.28122029,0.00013698,2]
[361341167,1747492237788,-255.26730144,0.00013698,2]
[361341170,1747492237797,-450.0,0.00013698,2]
[361341173,1747492237806,-543.42,0.00013698,2]
[361341174,1747492237816,-400.0,0.00013698,2]
[361341175,1747492237825,-400.0,0.00013698,2]
[361341176,1747492237834,-400.0,0.00013698,2]
[361341177,1747492237843,-450.0,0.00013698,2]
[361341178,1747492237853,-400.0,0.00013698,2]
[361341179,1747492237862,-400.0,0.00013698,2]
[361341180,1747492237873,-400.0,0.00013698,2]
[361341181,1747492237882,-400.0,0.00013698,2]
[361341182,1747492237891,-400.0,0.00013698,2]
[361341183,1747492237901,-450.0,0.00013698,2]
[361341184,1747492237910,-507.56,0.00013698,2]
[361341185,1747492237920,-400.0,0.00013698,2]
[361341186,1747492237929,-400.0,0.00013698,2]
[361341187,1747492237938,-400.0,0.00013698,2]
[361341188,1747492237947,-400.0,0.00013698,2]
[361341189,1747492237957,-400.0,0.00013698,2]
[361341190,1747492237966,-400.0,0.00013698,2]
[361341191,1747492237975,-450.0,0.00013698,2]
[361341192,1747492237985,-400.0,0.00013698,2]
[361341193,1747492237994,-400.0,0.00013698,2]
[361341194,1747492238003,-400.0,0.00013698,2]
[361341195,1747492238012,-400.0,0.00013698,2]
[361341196,1747492238024,-400.0,0.00013698,2]
[361341197,1747492238034,-300.0,0.00013698,2]
[361341198,1747492238044,-520.47,0.00013698,2]
[361341199,1747492238053,-505.73193461,0.00013698,2]
[361341200,1747492238062,-400.0,0.00013698,2]
[361341201,1747492238073,-400.0,0.00013698,2]
[361341202,1747492238082,-400.0,0.00013698,2]
[361341203,1747492238092,-455.04,0.00013698,2]
[361341204,1747492238104,-400.0,0.00013698,2]
[361341205,1747492238114,-400.0,0.00013698,2]
[361341206,1747492238124,-400.0,0.00013698,2]
[361341207,1747492238134,-400.0,0.00013698,2]
[361341208,1747492238144,-400.0,0.00013698,2]
[361341209,1747492238154,-469.73,0.00013698,2]
[361341210,1747492238164,-432.71,0.00013698,2]
[361341211,1747492238174,-450.0,0.00013698,2]
[361341212,1747492238184,-400.0,0.00013698,2]
[361341213,1747492238193,-400.0,0.00013698,2]
[361341214,1747492238203,-400.0,0.00013698,2]
[361341215,1747492238212,-321.45371395,0.00013698,2]
[361341216,1747492238221,-473.1,0.00013698,2]
[361341217,1747492238230,-224.73162541,0.00013698,2]
[361341218,1747492238239,-400.0,0.00013698,2]
[361341219,1747492238249,-450.0,0.00013698,2]
[361341220,1747492238258,-400.0,0.00013698,2]
[361341221,1747492238267,-525.09,0.00013698,2]
[361341222,1747492238276,-400.0,0.00013698,2]
[361341223,1747492238285,-400.0,0.00013698,2]
[361341224,1747492238294,-400.0,0.00013698,2]
[361341225,1747492238303,-400.0,0.00013698,2]
[361341226,1747492238312,-400.0,0.00013698,2]
[361341227,1747492238321,-400.0,0.00013698,2]
[361341228,1747492238330,-400.0,0.00013698,2]
[361341229,1747492238339,-400.0,0.00013698,2]
[361341230,1747492238348,-450.0,0.00013698,2]
[361341231,1747492238358,-400.0,0.00013698,2]
[361341232,1747492238367,-400.0,0.00013698,2]
[361341233,1747492238377,-450.0,0.00013698,2]
[361341234,1747492238385,-450.0,0.00013698,2]
[361341235,1747492238395,-450.0,0.00013698,2]
[361341236,1747492238404,-225.12,0.00013698,2]
[361341237,1747492238413,-400.0,0.00013698,2]
[361341238,1747492238422,-400.0,0.00013698,2]
[361341239,1747492238432,-400.0,0.00013698,2]
[361341240,1747492238443,-400.0,0.00013698,2]
[361341241,1747492238454,-400.0,0.00013698,2]
[361341242,1747492238464,-216.67981002,0.00013698,2]
[361341243,1747492238473,-450.0,0.00013698,2]
[361341244,1747492238484,-400.0,0.00013698,2]
[361341245,1747492238493,-400.0,0.00013698,2]
[361341246,1747492238503,-400.0,0.00013698,2]
[361341247,1747492238512,-473.17,0.00013698,2]
[361341248,1747492238521,-400.0,0.00013698,2]
[361341249,1747492238530,-400.0,0.00013698,2]
[361341250,1747492238540,-400.0,0.00013698,2]
[361341251,1747492238552,-465.98367526,0.00013698,2]
[361341252,1747492238564,-508.7543327,0.00013698,2]
[361341253,1747492238573,-400.0,0.00013698,2]
[361341254,1747492238584,-400.0,0.00013698,2]
[361341255,1747492238593,-400.0,0.00013698,2]
[361341256,1747492238603,-450.0,0.00013698,2]
[361341257,1747492238612,-450.0,0.00013698,2]
[361341258,1747492238621,-401.15484059,0.00013698,2]
[361341259,1747492238630,-400.0,0.00013698,2]
[361341260,1747492238639,-450.0,0.00013698,2]
[361341261,1747492238648,-400.0,0.00013698,2]
[361341262,1747492238657,-400.0,0.00013698,2]
[361341263,1747492238666,-435.77,0.00013698,2]
[361341264,1747492238675,-450.0,0.00013698,2]
[361341265,1747492238685,-450.0,0.00013698,2]
[361341266,1747492238694,-400.0,0.00013698,2]
[361341267,1747492238703,-450.0,0.00013698,2]
[361341268,1747492238712,-400.0,0.00013698,2]
[361341269,1747492238721,-450.0,0.00013698,2]
[361341270,1747492238731,-400.0,0.00013698,2]
[361341271,1747492238741,-500.0,0.00013698,2]
[361341272,1747492238754,-500.0,0.00013698,2]
[361341273,1747492238763,-479.59268791,0.00013698,2]
[361341274,1747492238773,-450.0,0.00013698,2]
[361341275,1747492238782,-450.0,0.00013698,2]
[361341276,1747492238792,-400.0,0.00013698,2]
[361341277,1747492238802,-450.0,0.00013698,2]
[361341278,1747492238811,-450.0,0.00013698,2]
[361341279,1747492238820,-400.0,0.00013698,2]
[361341280,1747492238829,-450.0,0.00013698,2]
[361341281,1747492238839,-594.45,0.00013698,2]
[361341282,1747492238848,-400.0,0.00013698,2]
[361341283,1747492238858,-400.0,0.00013698,2]
[361341284,1747492238867,-400.0,0.00013698,2]
[361341285,1747492238877,-400.0,0.00013698,2]
[361341286,1747492238886,-450.0,0.00013698,2]
[361341287,1747492238895,-457.03698808,0.00013698,2]
[361341288,1747492238904,-450.0,0.00013698,2]
[361341289,1747492238914,-400.0,0.00013698,2]
[361341290,1747492238923,-450.0,0.00013698,2]
[361341291,1747492238933,-210.96226806,0.00013698,2]
[361341292,1747492238942,-450.0,0.00013698,2]
[361341293,1747492238951,-400.0,0.00013698,2]
[361341294,1747492238960,-450.0,0.00013698,2]
[361341295,1747492238970,-400.0,0.00013698,2]
[361341296,1747492238979,-400.0,0.00013698,2]
[361341297,1747492238989,-400.0,0.00013698,2]
[361341298,1747492238998,-400.0,0.00013698,2]
[361341299,1747492239007,-400.0,0.00013698,2]
[361341300,1747492239017,-450.0,0.00013698,2]
[361341301,1747492239030,-400.0,0.00013698,2]
[361341302,1747492239039,-450.0,0.00013698,2]
[361341303,1747492239049,-400.0,0.00013698,2]
[361341304,1747492239059,-450.0,0.00013698,2]
[361341305,1747492239068,-450.0,0.00013698,2]
[361341306,1747492239078,-450.0,0.00013698,2]
[361341307,1747492239087,-248.97,0.00013698,2]
[361341308,1747492239097,-450.0,0.00013698,2]
[361341309,1747492239106,-450.0,0.00013698,2]
[361341310,1747492239116,-450.0,0.00013698,2]
[361341311,1747492239125,-450.0,0.00013698,2]
[361341312,1747492239135,-450.0,0.00013698,2]
[361341313,1747492239145,-779.24,0.00013698,2]
[361341314,1747492239154,-372.67528539,0.00013698,2]
[361341315,1747492239172,-77.32471461,0.00013698,2]
[361341316,1747492239181,-400.0,0.00013698,2]
[361341317,1747492239190,-162.67528539,0.00013698,2]
[361341330,1747492240129,-287.32471461,0.00013698,2]
[361341331,1747492240139,-257.34371658,0.00013698,2]
[361341332,1747492240150,-192.65628342,0.00013698,2]
[361341333,1747492240160,-450.0,0.00013698,2]
[361341334,1747492240171,-1365.47,0.00013698,2]
[361341335,1747492240180,-450.0,0.00013698,2]
[361341336,1747492240190,-450.0,0.00013698,2]
[361341337,1747492240199,-450.0,0.00013698,2]
[361341338,1747492240208,-459.05,0.00013698,2]
[361341339,1747492240217,-873.7,0.00013698,2]
[361341340,1747492240227,-450.0,0.00013698,2]
[361341341,1747492240236,-379.42100616,0.00013698,2]
[361341342,1747492240245,-450.0,0.00013698,2]
[361341343,1747492240254,-400.0,0.00013698,2]
[361341344,1747492240263,-450.0,0.00013698,2]
[361341345,1747492240272,-450.0,0.00013698,2]
[361341346,1747492240281,-450.0,0.00013698,2]
[361341347,1747492240291,-450.0,0.00013698,2]
[361341348,1747492240300,-450.0,0.00013698,2]
[361341349,1747492240309,-450.0,0.00013698,2]
[361341350,1747492240318,-400.0,0.00013698,2]
[361341351,1747492240327,-530.81,0.00013698,2]
[361341352,1747492240337,-407.86,0.00013698,2]
[361341353,1747492240346,-450.0,0.00013698,2]
[361341354,1747492240355,-179.20324,0.00013699,2]
[361341355,1747492240364,-500.0,0.00013699,2]
[361341356,1747492240374,-221.20682427,0.00013699,2]
[361341357,1747492240384,-606.12333882,0.00013735,2]
[361341358,1747492240393,-366.0992596,0.00013835,2]
[361341359,1747492240403,-450.0,0.00013835,2]
[361341360,1747492240412,-450.0,0.00013835,2]
[361341361,1747492240421,-450.0,0.00013835,2]
[361341362,1747492240431,-450.0,0.00013835,2]
[361341363,1747492240442,-4.47230127,0.00013835,2]
[361341364,1747492240455,-445.52769873,0.00013835,2]
[361341365,1747492240466,-450.0,0.00013835,2]
[361341366,1747492240476,-461.58,0.00013835,2]
[361341367,1747492240487,-145.59715659,0.00013835,2]
[361341368,1747492240500,-304.40284341,0.00013835,2]
[361341369,1747492240658,-294.64844261,0.00013835,2]
[361341370,1747492240670,-155.35155739,0.00013835,2]
[361341371,1747492240680,-450.0,0.00013835,2]
[361341372,1747492240690,-779.24,0.00013835,2]
[361341373,1747492240699,-450.0,0.00013835,2]
[361341374,1747492240709,-450.0,0.00013835,2]
[361341375,1747492240718,-450.0,0.00013835,2]
[361341376,1747492240727,-1218.33672813,0.00013835,2]
[361341392,1747492242873,-450.0,0.00013698,2]
[361341393,1747492242883,-147.13327187,0.00013835,2]
[361341394,1747492242893,-450.0,0.00013835,2]
[361341395,1747492242902,-450.0,0.00013835,2]
[361341396,1747492242912,-230.75,0.00013835,2]
[361341397,1747492242921,-459.05,0.00013835,2]
[361341398,1747492242931,-873.7,0.00013835,2]
[361341399,1747492242940,-450.0,0.00013835,2]
[361341400,1747492242949,-450.0,0.00013835,2]
[361341401,1747492242958,-450.0,0.00013835,2]
[361341402,1747492242968,-572.84363248,0.00013835,2]
[361341403,1747492242977,-450.0,0.00013835,2]
[361341404,1747492242986,-450.0,0.00013835,2]
[361341405,1747492242997,-450.0,0.00013835,2]
[361341406,1747492243007,-500.0,0.000139,2]
[361341407,1747492243017,-500.0,0.000139,2]
[361341408,1747492243029,-500.0,0.000139,2]
[361341409,1747492243039,-500.0,0.00013971,2]
[361341410,1747492243048,-450.0,0.00013972,2]
[361341412,1747492243058,-450.0,0.00013972,2]
[361341414,1747492243071,-450.0,0.00013972,2]
[361341416,1747492243080,-450.0,0.00013972,2]
[361341417,1747492243090,-450.0,0.00013972,2]
[361341418,1747492243100,-450.0,0.00013972,2]
[361341420,1747492243110,-450.0,0.00013972,2]
[361341422,1747492243120,-779.24,0.00013972,2]
[361341424,1747492243129,-450.0,0.00013972,2]
[361341426,1747492243140,-450.0,0.00013972,2]
[361341427,1747492243150,-450.0,0.00013972,2]
[361341429,1747492243160,-1365.47,0.00013972,2]
[361341432,1747492243170,-497.84,0.00013972,2]
[361341433,1747492243180,-450.0,0.00013972,2]
[361341436,1747492243189,-459.05,0.00013972,2]
[361341437,1747492243199,-873.7,0.00013972,2]
[361341439,1747492243209,-450.0,0.00013972,2]
[361341441,1747492243218,-200.94108081,0.00013972,2]
[361341442,1747492243229,-450.0,0.00013972,2]
[361341443,1747492243238,-450.0,0.00013972,2]
[361341444,1747492243248,-450.0,0.00013972,2]
[361341445,1747492243258,-450.0,0.00013972,2]
[361341446,1747492243267,-500.0,0.00013994,2]
[361341447,1747492243276,-450.0,0.00014109,2]
[361341448,1747492243285,-450.0,0.00014109,2]
[361341449,1747492243295,-450.0,0.00014109,2]
[361341450,1747492243304,-450.0,0.00014109,2]
[361341451,1747492243313,-450.0,0.00014109,2]
[361341452,1747492243322,-450.0,0.00014109,2]
[361341453,1747492243331,-779.24,0.00014109,2]
[361341454,1747492243340,-450.0,0.00014109,2]
[361341455,1747492243349,-450.0,0.00014109,2]
[361341456,1747492243359,-450.0,0.00014109,2]
[361341457,1747492243368,-1365.47,0.00014109,2]
[361341458,1747492243377,-450.0,0.00014109,2]
[361341459,1747492243388,-459.05,0.00014109,2]
[361341460,1747492243397,-873.7,0.00014109,2]
[361341461,1747492243406,-450.0,0.00014109,2]
[361341462,1747492243416,-450.0,0.00014109,2]
[361341463,1747492243425,-450.0,0.00014109,2]
[361341464,1747492243434,-450.0,0.00014109,2]
[361341465,1747492243444,-450.0,0.00014109,2]
[361341466,1747492243454,-500.0,0.00014164,2]
[361341467,1747492243463,-501.01371699,0.00014164,2]
[361341468,1747492243473,-500.0,0.00014164,2]
[361341469,1747492243482,-500.0,0.00014164,2]
[361341470,1747492243491,-500.0,0.00014221,2]
[361341471,1747492243500,-500.0,0.00014221,2]
[361341472,1747492243509,-500.0,0.00014221,2]
[361341473,1747492243518,-614.79370819,0.00014221,2]
[361341474,1747492243528,-410.76631728,0.00014221,2]
[361341475,1747492243537,-500.0,0.00014221,2]
[361341476,1747492243546,-500.0,0.00014221,2]
[361341477,1747492243555,-500.0,0.00014221,2]
[361341478,1747492243564,-500.0,0.00014221,2]
[361341479,1747492243573,-500.0,0.00014221,2]
[361341480,1747492243582,-500.0,0.00014221,2]
[361341481,1747492243591,-500.0,0.00014221,2]
[361341482,1747492243600,-629.75630598,0.00014221,2]
[361341483,1747492243610,-998.40506679,0.00014222,2]
[361341484,1747492243619,-160.0,0.00014222,2]
[361341485,1747492243629,-405.90724212,0.00014222,2]
[361341486,1747492243639,-160.0,0.00014222,2]
[361341487,1747492243648,-160.0,0.00014222,2]
[361341488,1747492243657,-12634.18372584,0.00014222,2]